fUSD/lending_fUSD_20251206
["ID","MTS","AMOUNT","RATE_DAILY","PERIOD"]
[396555087,1765048257536,-500.3993338,0.00016773,2]
[396555088,1765048257546,-174.41948624,0.00016773,2]
[396555089,1765048257555,-500.62472477,0.00016773,2]
[396555090,1765048257565,-533.87441013,0.00016773,2]
[396555091,1765048257575,-500.30195195,0.00016773,2]
[396555092,1765048257584,-501.71822153,0.00016773,2]
[396555093,1765048257593,-361.8800049,0.00016773,2]
[396555094,1765048257602,-500.0,0.00016773,2]
[396555095,1765048257612,-172.28481837,0.00016773,2]
[396555096,1765048257621,-500.50004944,0.00016773,2]
[396555097,1765048257631,-500.0,0.00016773,2]
[396555098,1765048257639,-501.25200207,0.00016773,2]
[396555099,1765048257649,-500.29540711,0.00016773,2]
[396555100,1765048257658,-500.42810678,0.00016773,2]
[396555101,1765048257667,-500.2210751,0.00016773,2]
[396555102,1765048257677,-500.22803299,0.00016773,2]
[396555103,1765048257687,-201.25423826,0.00016773,2]
[396555104,1765048257695,-499.40381632,0.00016773,2]
[396555105,1765048257705,-500.61501889,0.00016773,2]
[396555106,1765048257714,-165.48646928,0.00016773,2]
[396555107,1765048257724,-162.56423631,0.00016773,2]
[396555108,1765048257738,-502.19569569,0.00016773,2]
[396555109,1765048257747,-215.8566305,0.00016773,2]
[396555110,1765048257756,-161.74158391,0.00016773,2]
[396555111,1765048257765,-501.43530514,0.00016773,2]
[396555112,1765048257775,-500.0,0.00016773,2]
[396555113,1765048257786,-500.52819731,0.00016773,2]
[396555114,1765048257795,-500.0,0.00016773,2]
[396555115,1765048257806,-165.14212935,0.00016773,2]
[396555116,1765048257816,-500.4567122,0.00016773,2]
[396555117,1765048257827,-503.8408437,0.00016773,2]
[396555118,1765048257838,-501.05174336,0.00016773,2]
[396555119,1765048257850,-501.24236272,0.00016773,2]
[396555120,1765048257859,-840.20056416,0.00016775,2]
[396555121,1765048257870,-241.91263533,0.00016816,2]
[396555122,1765048257892,-872.26117996,0.00016301,2]
[396555123,1765048257911,-378.87943479,0.00016301,2]
[396555124,1765048257927,-259.83510721,0.00016301,2]
[396555125,1765048257947,-1560.46839951,0.00016301,2]
[396555126,1765048257955,-2258.08736467,0.00016816,2]
[396555127,1765048257964,-2500.0,0.00016816,2]
[396555128,1765048257973,-2500.0,0.00016816,2]
[396555129,1765048257983,-2500.0,0.00016816,2]
[396555130,1765048257991,-2500.0,0.00016816,2]
[396555131,1765048258000,-3000.0,0.00016816,3]
[396555132,1765048258009,-8.68834267,0.00016816,2]
[396555133,1765048258020,-241.31165733,0.00016816,2]
[396555134,1765048258029,-171.47,0.00016821,2]
[396555135,1765048258038,-3033.50021067,0.00016827,2]
[396555136,1765048258047,-840.20056416,0.00016838,2]
[396555137,1765048258056,-158.25098337,0.00016851,2]
[396555138,1765048258065,-414.52454311,0.00016859,2]
[396555139,1765048258074,-500.0,0.00016875,2]
[396555140,1765048258083,-6096.62519727,0.00016876,2]
[396555141,1765048258094,-1267.94952971,0.00016876,2]
[396555142,1765048259511,-315.09128348,0.00016438,2]
[396555143,1765048259523,-184.90871652,0.00016438,2]
[396555144,1765048259532,-526.79,0.00016438,2]
[396555145,1765048259541,-200.45992613,0.00016438,2]
[396555146,1765048259554,-299.54007387,0.00016438,2]
[396555147,1765048259563,-308.68994541,0.00016438,2]
[396555148,1765048259660,-191.31005459,0.00016438,2]
[396555149,1765048259670,-1001.13872565,0.00016876,2]
[396555150,1765048259687,-500.0,0.00016438,2]
[396555151,1765048259697,-1736.39820028,0.00016876,2]
[396555156,1765048268182,500.0,0.00019178,30]
[396555157,1765048268652,500.0,0.00019178,30]
[396555158,1765048269244,500.0,0.00019178,30]
[396555159,1765048270181,500.0,0.00019178,30]
[396555160,1765048270314,500.0,0.00019178,30]
[396555161,1765048270624,500.0,0.00019178,30]
[396555162,1765048271169,500.0,0.00019178,30]
[396555163,1765048271621,500.0,0.00019178,30]
[396555165,1765048272066,500.0,0.00019178,30]
[396555167,1765048272530,388.94866018,0.00019178,30]
[396555332,1765048546326,167.55,0.00012305,2]
[396555450,1765048662677,50405.54862994,0.0001509,30]
[396555580,1765048859893,4679.16,7.646e-05,2]
[396555581,1765048859988,1775.11006547,8.049e-05,2]
[396555582,1765048860015,2904.04993453,8.049e-05,2]
[396555583,1765048860208,4679.16,8.451e-05,2]
[396555584,1765048860419,2416.80006547,8.853e-05,2]
[396555585,1765048860441,2262.35993453,8.853e-05,2]
[396555586,1765048860605,4679.16,9.256e-05,2]
[396555587,1765048860810,3058.49006547,9.658e-05,2]
[396555588,1765048860833,1620.66993453,9.658e-05,2]
[396555589,1765048861011,4679.16,0.00010061,2]
[396555590,1765048861575,3700.18006547,0.00010463,2]
[396555591,1765048861600,978.97993453,0.00010463,2]
[396555592,1765048861652,4679.16,0.00010866,2]
[396555593,1765048861811,4341.87006547,0.00011268,2]
[396555594,1765048861835,337.28993453,0.00011268,2]
[396555595,1765048862053,4679.16,0.00011671,2]
[396555596,1765048862240,4679.16,0.00012073,2]
[396555597,1765048862438,304.40006547,0.00012475,2]
[396555598,1765048862462,4374.75993453,0.00012475,2]
[396555599,1765048862641,4679.16,0.00012878,2]
[396555987,1765049431317,-227.600827,0.00013146,2]
[396555989,1765049431328,-259.0,0.00013213,2]
[396555990,1765049431339,-4679.16,0.0001328,2]
[396555991,1765049431349,-280.84520111,0.00013582,2]
[396555992,1765049431358,-300.0,0.00013681,2]
[396555993,1765049431368,-300.0,0.00013681,2]
[396555994,1765049431378,-1200.0,0.00013681,2]
[396555995,1765049431388,-1042.0,0.00013682,2]
[396555996,1765049431398,-4679.16,0.00013683,2]
[396555997,1765049431408,-280.8452011,0.00013783,2]
[396555998,1765049431418,-280.8452011,0.00013984,2]
[396555999,1765049431428,-1594.4041495,0.00013985,2]
[396556000,1765049431437,-150.0,0.0001407,2]
[396556001,1765049431448,-193.01982104,0.0001407,2]
[396556002,1765049431460,-306.98017896,0.0001407,2]
[396556003,1765049431469,-500.0,0.0001407,2]
[396556004,1765049431479,-389.45699249,0.0001407,2]
[396556005,1765049431488,-44330.20748327,0.00014071,2]
[396556006,1765049431498,-4679.16,0.00014085,2]
[396556007,1765049431507,-187.0,0.00014439,2]
[396556008,1765049431516,-166.67,0.00014485,2]
[396556009,1765049431526,-4679.16,0.00014488,2]
[396556010,1765049431535,-250.0,0.00014534,2]
[396556011,1765049431544,-250.0,0.00014535,2]
[396556012,1765049431553,-250.0,0.00014608,2]
[396556013,1765049431563,-500.0,0.00014632,2]
[396556014,1765049431572,-227.0,0.00014777,2]
[396556015,1765049431582,-4679.16,0.0001489,2]
[396556016,1765049431592,-511.19,0.0001489,2]
[396556017,1765049431601,-9999.99,0.0001489,2]
[396556018,1765049431610,-788.13,0.0001489,2]
[396556019,1765049431620,-19590.2,0.0001489,2]
[396556020,1765049431629,-420.0,0.00014993,2]
[396556021,1765049431639,-420.0,0.00014993,2]
[396556022,1765049431648,-308.49,0.00015014,2]
[396556023,1765049431657,-1680.0,0.00015049,2]
[396556024,1765049431668,-7022.87463653,0.00015112,2]
[396556025,1765049431677,-500.0,0.00015188,2]
[396556026,1765049431686,-255.0,0.00015196,2]
[396556027,1765049431696,-150.0,0.00015257,2]
[396556028,1765049431705,-150.0,0.00015288,2]
[396556029,1765049431715,-4679.16,0.00015292,2]
[396556030,1765049431724,-283.18935834,0.00015372,2]
[396556031,1765049431733,-1252.0,0.00015372,2]
[396556032,1765049431743,-1252.0,0.00015372,2]
[396556033,1765049431752,-1252.0,0.00015372,2]
[396556034,1765049431761,-1248.0,0.00015372,2]
[396556035,1765049431771,-504.91658739,0.000154,2]
[396556036,1765049431780,-4107.88694789,0.00015417,2]
[396556037,1765049431789,-1000.0,0.00015608,2]
[396556038,1765049431798,-719.77407616,0.00015612,2]
[396556039,1765049431809,-166.67,0.0001568,2]
[396556040,1765049431819,-1722.17,0.00015814,2]
[396556041,1765049431828,-250.0,0.00015916,2]
[396556042,1765049431838,-1000.0,0.00016138,2]
[396556043,1765049431847,-44289.8878,0.00016138,2]
[396556044,1765049431856,-51322.05867499,0.00016138,2]
[396556045,1765049431867,-4580.49555042,0.00016138,2]
[396556046,1765049431879,-10804.57481373,0.00016138,2]
[396556047,1765049431902,-16411.79760337,0.00016138,2]
[396556048,1765049431914,-3673.29706504,0.00016138,2]
[396556049,1765049431925,-652.30130565,0.00016138,2]
[396556050,1765049431936,-6469.16248945,0.00016138,2]
[396556051,1765049431974,-500.0,0.0001537,2]
[396556052,1765049431983,-33.34640399,0.00016138,2]
[396556053,1765049431994,-265.84703492,0.00016138,2]
[396556054,1765049432038,-254.54798135,0.0001537,2]
[396556055,1765049432048,-126.24951432,0.0001537,2]
[396556056,1765049432059,-107.31278535,0.0001537,2]
[396556057,1765049432138,-392.68721465,0.00016138,2]
[396556058,1765049432149,-835.60817854,0.00016138,2]
[396556059,1765049432160,-1770.53796578,0.00016138,2]
[396556060,1765049432171,-705.35388166,0.00016138,2]
[396556061,1765049432228,-1023.16132915,0.00016138,2]
[396556062,1765049432239,-5160.9158902,0.00016138,2]
[396556063,1765049432253,-6069.1,0.00016138,2]
[396556064,1765049432265,-539.22203303,0.00016138,2]
[396556074,1765049437410,-174065.28516543,0.00016138,2]
[396556076,1765049437419,-150.0,0.00016183,2]
[396556078,1765049437430,-150.0,0.00016183,2]
[396556080,1765049437440,-150.0,0.00016183,2]
[396556081,1765049437449,-151.0,0.00016198,2]
[396556082,1765049437461,-300.0,0.00016201,2]
[396556083,1765049437472,-200.0,0.00016201,2]
[396556084,1765049437482,-207.4,0.00016201,2]
[396556085,1765049437491,-215.0738,0.00016201,2]
[396556086,1765049437500,-223.0315306,0.00016201,2]
[396556087,1765049437510,-231.28369723,0.00016201,2]
[396556088,1765049437519,-239.84119403,0.00016201,2]
[396556089,1765049437529,-248.71531821,0.00016201,2]
[396556090,1765049437538,-257.91778498,0.00016201,2]
[396556091,1765049437547,-267.46074303,0.00016201,2]
[396556092,1765049437557,-500.0,0.00016201,2]
[396556093,1765049437567,-500.0,0.00016201,2]
[396556094,1765049437576,-500.0,0.00016201,2]
[396556095,1765049437585,-500.0,0.00016201,2]
[396556096,1765049437594,-500.0,0.00016201,2]
[396556097,1765049437604,-500.0,0.00016201,2]
[396556098,1765049437613,-500.0,0.00016201,2]
[396556099,1765049437622,-500.0,0.00016201,2]
[396556100,1765049437633,-500.0,0.00016201,2]
[396556101,1765049437643,-500.0,0.00016201,2]
[396556102,1765049437653,-452.39878914,0.00016201,2]
[396556103,1765049437662,-2011.02676143,0.00016212,2]
[396556104,1765049437672,-150.0,0.00016237,2]
[396556105,1765049437683,-150.0,0.00016237,2]
[396556106,1765049437692,-150.0,0.00016237,2]
[396556108,1765049437702,-150.0,0.00016237,2]
[396556110,1765049437711,-150.0,0.00016244,2]
[396556112,1765049437721,-150.0,0.00016244,2]
[396556114,1765049437731,-1259.0,0.00016245,2]
[396556116,1765049437740,-614.0,0.00016245,2]
[396556118,1765049437750,-1194.0,0.00016245,2]
[396556120,1765049437759,-909.0,0.00016245,2]
[396556122,1765049437768,-253.0,0.00016245,2]
[396556124,1765049437778,-1323.0,0.00016245,2]
[396556126,1765049437786,-4707.0,0.00016245,2]
[396556128,1765049437796,-1227.5526684,0.00016312,2]
[396556131,1765049437805,-150.0,0.0001632,2]
[396556134,1765049437814,-150.0,0.0001632,2]
[396556137,1765049437823,-296.03495176,0.00016338,2]
[396556140,1765049437832,-158.41495458,0.00016338,2]
[396556142,1765049437841,-3014.3782,0.00016338,2]
[396556144,1765049437850,-1000.0,0.00016338,2]
[396556146,1765049437859,-200.0,0.00016374,2]
[396556148,1765049437868,-150.0,0.00016374,2]
[396556150,1765049437877,-200.0,0.00016374,2]
[396556152,1765049437886,-201.56637742,0.00016381,2]
[396556154,1765049437895,-150.0,0.00016381,2]
[396556156,1765049437904,-1227.5526684,0.00016396,2]
[396556157,1765049437913,-265.0,0.00016406,2]
[396556159,1765049437922,-587.0,0.00016431,2]
[396556161,1765049437933,-151.0,0.00016435,2]
[396556163,1765049437942,-502.86904478,0.00016438,2]
[396556166,1765049437953,-501.03550429,0.00016438,2]
[396556167,1765049437963,-501.43523502,0.00016438,2]
[396556169,1765049437973,-630.41013807,0.00016438,2]
[396556171,1765049437982,-500.0,0.00016438,2]
[396556173,1765049437991,-502.9556045,0.00016438,2]
[396556175,1765049438001,-501.36752178,0.00016438,2]
[396556177,1765049438011,-523.68637692,0.00016438,2]
[396556179,1765049438020,-501.78890317,0.00016438,2]
[396556181,1765049438029,-500.0,0.00016438,2]
[396556183,1765049438039,-500.0,0.00016438,2]
[396556185,1765049438049,-504.51,0.00016438,2]
[396556187,1765049438058,-500.0,0.00016438,2]
[396556189,1765049438068,-500.0,0.00016438,2]
[396556191,1765049438077,-500.0,0.00016438,2]
[396556193,1765049438086,-500.0,0.00016438,2]
[396556195,1765049438096,-500.0,0.00016438,2]
[396556197,1765049438106,-500.0,0.00016438,2]
[396556199,1765049438116,-500.0,0.00016438,2]
[396556201,1765049438127,-500.0,0.00016438,2]
[396556203,1765049438136,-500.0,0.00016438,2]
[396556205,1765049438146,-500.0,0.00016438,2]
[396556207,1765049438155,-500.0,0.00016438,2]
[396556209,1765049438165,-500.0,0.00016438,2]
[396556211,1765049438175,-500.0,0.00016438,2]
[396556213,1765049438185,-500.0,0.00016438,2]
[396556215,1765049438194,-500.0,0.00016438,2]
[396556217,1765049438205,-500.0,0.00016438,2]
[396556219,1765049438215,-500.0,0.00016438,2]
[396556221,1765049438224,-500.0,0.00016438,2]
[396556223,1765049438233,-500.0,0.00016438,2]
[396556225,1765049438243,-295.38070416,0.00016438,2]
[396556227,1765049438258,-501.54488646,0.00016438,2]
[396556229,1765049438268,-500.0,0.00016438,2]
[396556231,1765049438277,-500.0,0.00016438,2]
[396556233,1765049438287,-500.0,0.00016438,2]
[396556235,1765049438297,-2008.32,0.00016438,2]
[396556237,1765049438307,-500.0,0.00016438,2]
[396556239,1765049438316,-244.73171036,0.00016438,2]
[396556241,1765049438326,-500.0,0.00016438,2]
[396556243,1765049438338,-500.0,0.00016438,2]
[396556245,1765049438347,-500.0,0.00016438,2]
[396556247,1765049438357,-500.0,0.00016438,2]
[396556249,1765049438366,-500.0,0.00016438,2]
[396556251,1765049438376,-504.55558342,0.00016438,2]
[396556253,1765049438385,-1274.27,0.00016438,2]
[396556255,1765049438395,-500.0,0.00016438,2]
[396556257,1765049438404,-500.0,0.00016438,2]
[396556258,1765049438414,-500.0,0.00016438,2]
[396556261,1765049438425,-500.0,0.00016438,2]
[396556262,1765049438435,-500.0,0.00016438,2]
[396556264,1765049438444,-500.0,0.00016438,2]
[396556266,1765049438454,-543.95,0.00016438,2]
[396556268,1765049438463,-500.0,0.00016438,2]
[396556270,1765049438474,-1642.59,0.00016438,2]
[396556272,1765049438483,-626.13516018,0.00016438,2]
[396556274,1765049438492,-500.0,0.00016438,2]
[396556276,1765049438502,-503.00837935,0.00016438,2]
[396556278,1765049438512,-500.0,0.00016438,2]
[396556280,1765049438522,-500.0,0.00016438,2]
[396556282,1765049438531,-500.0,0.00016438,2]
[396556284,1765049438540,-541.66132068,0.00016438,2]
[396556286,1765049438549,-500.0,0.00016438,2]
[396556288,1765049438558,-501.97212613,0.00016438,2]
[396556290,1765049438568,-500.0,0.00016438,2]
[396556292,1765049438577,-1330.44,0.00016438,2]
[396556294,1765049438586,-500.0,0.00016438,2]
[396556296,1765049438595,-503.20325223,0.00016438,2]
[396556298,1765049438606,-500.0,0.00016438,2]
[396556300,1765049438616,-500.0,0.00016438,2]
[396556302,1765049438625,-500.0,0.00016438,2]
[396556304,1765049438635,-500.0,0.00016438,2]
[396556306,1765049438644,-500.0,0.00016438,2]
[396556308,1765049438654,-500.0,0.00016438,2]
[396556310,1765049438664,-502.60918029,0.00016438,2]
[396556312,1765049438673,-500.0,0.00016438,2]
[396556313,1765049438683,-500.0,0.00016438,2]
[396556314,1765049438693,-1981.1,0.00016438,2]
[396556316,1765049438702,-500.0,0.00016438,2]
[396556317,1765049438713,-481.50056983,0.00016438,2]
[396556319,1765049438722,-500.0,0.00016438,2]
[396556321,1765049438731,-500.0,0.00016438,2]
[396556323,1765049438741,-500.0,0.00016438,2]
[396556324,1765049438751,-500.0,0.00016438,2]
[396556325,1765049438760,-500.0,0.00016438,2]
[396556326,1765049438770,-500.0,0.00016438,2]
[396556327,1765049438779,-500.0,0.00016438,2]
[396556328,1765049438789,-500.0,0.00016438,2]
[396556329,1765049438799,-500.0,0.00016438,2]
[396556330,1765049438808,-503.44743897,0.00016438,2]
[396556331,1765049438818,-500.0,0.00016438,2]
[396556332,1765049438828,-500.0,0.00016438,2]
[396556333,1765049438843,-511.87311819,0.00016438,2]
[396556334,1765049438853,-502.28475495,0.00016438,2]
[396556335,1765049439058,-498.0211094,0.00016438,2]
[396556336,1765049439089,-500.0,0.00016438,2]
[396556337,1765049439099,-500.0,0.00016438,2]
[396556338,1765049439109,-500.0,0.00016438,2]
[396556339,1765049439118,-500.0,0.00016438,2]
[396556340,1765049439128,-502.25023196,0.00016438,2]
[396556341,1765049439142,-500.0,0.00016438,2]
[396556342,1765049439152,-500.0,0.00016438,2]
[396556343,1765049439161,-501.27967238,0.00016438,2]
[396556344,1765049439170,-2057.39,0.00016438,2]
[396556345,1765049439180,-500.0,0.00016438,2]
[396556346,1765049439190,-1778.56,0.00016438,2]
[396556347,1765049439200,-500.0,0.00016438,2]
[396556348,1765049439210,-500.0,0.00016438,2]
[396556349,1765049439220,-500.0,0.00016438,2]
[396556350,1765049439230,-686.14,0.00016438,2]
[396556351,1765049439239,-500.0,0.00016438,2]
[396556352,1765049439251,-500.0,0.00016438,2]
[396556353,1765049439261,-500.0,0.00016438,2]
[396556354,1765049439272,-500.0,0.00016438,2]
[396556355,1765049439281,-500.0,0.00016438,2]
[396556356,1765049439292,-502.15633118,0.00016438,2]
[396556357,1765049439302,-500.0,0.00016438,2]
[396556358,1765049439311,-500.0,0.00016438,2]
[396556359,1765049439322,-500.0,0.00016438,2]
[396556360,1765049439332,-2333.88,0.00016438,2]
[396556361,1765049439345,-500.0,0.00016438,2]
[396556362,1765049439354,-500.0,0.00016438,2]
[396556363,1765049439364,-501.96425277,0.00016438,2]
[396556364,1765049439373,-505.98218405,0.00016438,2]
[396556365,1765049439383,-564.84437185,0.00016438,2]
[396556366,1765049439393,-500.0,0.00016438,2]
[396556367,1765049439402,-500.0,0.00016438,2]
[396556368,1765049439413,-500.0,0.00016438,2]
[396556369,1765049439423,-500.0,0.00016438,2]
[396556370,1765049439434,-500.0,0.00016438,2]
[396556371,1765049439444,-500.0,0.00016438,2]
[396556372,1765049439453,-500.0,0.00016438,2]
[396556373,1765049439463,-500.0,0.00016438,2]
[396556374,1765049439472,-500.0,0.00016438,2]
[396556375,1765049439482,-500.0,0.00016438,2]
[396556376,1765049439491,-500.0,0.00016438,2]
[396556377,1765049439501,-500.0,0.00016438,2]
[396556378,1765049439510,-500.0,0.00016438,2]
[396556379,1765049439520,-500.0,0.00016438,2]
[396556380,1765049439529,-500.0,0.00016438,2]
[396556381,1765049439539,-500.0,0.00016438,2]
[396556382,1765049439552,-500.0,0.00016438,2]
[396556383,1765049439562,-496.68323276,0.00016438,2]
[396556384,1765049439571,-500.0,0.00016438,2]
[396556385,1765049439581,-500.0,0.00016438,2]
[396556386,1765049439591,-500.0,0.00016438,2]
[396556387,1765049439600,-500.0,0.00016438,2]
[396556388,1765049439610,-300.0,0.00016438,2]
[396556389,1765049439620,-500.0,0.00016438,2]
[396556390,1765049439629,-500.0,0.00016438,2]
[396556391,1765049439639,-500.0,0.00016438,2]
[396556392,1765049439649,-500.0,0.00016438,2]
[396556393,1765049439659,-500.0,0.00016438,2]
[396556394,1765049439668,-500.0,0.00016438,2]
[396556395,1765049439678,-500.0,0.00016438,2]
[396556396,1765049439688,-500.0,0.00016438,2]
[396556397,1765049439698,-1329.21,0.00016438,2]
[396556398,1765049439708,-2027.17,0.00016438,2]
[396556399,1765049439718,-500.0,0.00016438,2]
[396556400,1765049439728,-2210.45,0.00016438,2]
[396556401,1765049439741,-500.0,0.00016438,2]
[396556402,1765049439751,-500.0,0.00016438,2]
[396556403,1765049439761,-500.0,0.00016438,2]
[396556404,1765049439772,-500.0,0.00016438,2]
[396556405,1765049439782,-500.0,0.00016438,2]
[396556406,1765049439791,-500.0,0.00016438,2]
[396556407,1765049439801,-500.0,0.00016438,2]
[396556408,1765049439811,-500.0,0.00016438,2]
[396556409,1765049439821,-500.0,0.00016438,2]
[396556410,1765049439831,-504.48917676,0.00016438,2]
[396556411,1765049439841,-500.0,0.00016438,2]
[396556412,1765049439851,-500.0,0.00016438,2]
[396556413,1765049439860,-500.0,0.00016438,2]
[396556414,1765049439870,-500.0,0.00016438,2]
[396556415,1765049439879,-500.0,0.00016438,2]
[396556416,1765049439889,-1000.0,0.00016438,2]
[396556417,1765049439898,-500.0,0.00016438,2]
[396556418,1765049439908,-500.0,0.00016438,2]
[396556419,1765049439918,-500.0,0.00016438,2]
[396556420,1765049439928,-500.0,0.00016438,2]
[396556421,1765049439938,-500.0,0.00016438,2]
[396556422,1765049439950,-500.0,0.00016438,2]
[396556423,1765049439959,-500.0,0.00016438,2]
[396556424,1765049439968,-500.0,0.00016438,2]
[396556425,1765049439979,-500.82063503,0.00016438,2]
[396556426,1765049439988,-500.0,0.00016438,2]
[396556427,1765049439998,-502.822061,0.00016438,2]
[396556428,1765049440009,-631.56349314,0.00016438,2]
[396556429,1765049440019,-500.0,0.00016438,2]
[396556430,1765049440029,-524.97,0.00016438,2]
[396556431,1765049440038,-500.0,0.00016438,2]
[396556432,1765049440048,-500.0,0.00016438,2]
[396556433,1765049440057,-500.0,0.00016438,2]
[396556434,1765049440067,-497.46858562,0.00016438,2]
[396556435,1765049440076,-500.0,0.00016438,2]
[396556436,1765049440086,-261.244917,0.00016438,2]
[396556437,1765049440095,-500.0,0.00016438,2]
[396556438,1765049440106,-2063.82,0.00016438,2]
[396556439,1765049440116,-500.0,0.00016438,2]
[396556440,1765049440126,-405.01574415,0.00016438,2]
[396556441,1765049440136,-500.0,0.00016438,2]
[396556442,1765049440147,-500.0,0.00016438,2]
[396556443,1765049440156,-501.30040746,0.00016438,2]
[396556444,1765049440166,-500.0,0.00016438,2]
[396556445,1765049440176,-500.0,0.00016438,2]
[396556446,1765049440186,-500.0,0.00016438,2]
[396556447,1765049440195,-500.0,0.00016438,2]
[396556448,1765049440205,-500.0,0.00016438,2]
[396556449,1765049440214,-500.0,0.00016438,2]
[396556450,1765049440224,-500.0,0.00016438,2]
[396556451,1765049440234,-654.82,0.00016438,2]
[396556452,1765049440243,-500.0,0.00016438,2]
[396556453,1765049440257,-510.76697966,0.00016438,2]
[396556454,1765049440266,-500.0,0.00016438,2]
[396556455,1765049440276,-500.0,0.00016438,2]
[396556456,1765049440285,-500.0,0.00016438,2]
[396556457,1765049440297,-500.0,0.00016438,2]
[396556458,1765049440306,-500.0,0.00016438,2]
[396556459,1765049440316,-500.0,0.00016438,2]
[396556460,1765049440326,-503.12592944,0.00016438,2]
[396556461,1765049440336,-2187.18,0.00016438,2]
[396556462,1765049440345,-500.0,0.00016438,2]
[396556463,1765049440355,-500.0,0.00016438,2]
[396556464,1765049440364,-502.62767731,0.00016438,2]
[396556465,1765049440374,-500.0,0.00016438,2]
[396556466,1765049440384,-500.0,0.00016438,2]
[396556467,1765049440393,-500.0,0.00016438,2]
[396556468,1765049440402,-500.0,0.00016438,2]
[396556469,1765049440411,-500.0,0.00016438,2]
[396556470,1765049440422,-639.87,0.00016438,2]
[396556471,1765049440431,-500.0,0.00016438,2]
[396556472,1765049440440,-500.0,0.00016438,2]
[396556473,1765049440450,-500.0,0.00016438,2]
[396556474,1765049440459,-500.0,0.00016438,2]
[396556475,1765049440470,-500.0,0.00016438,2]
[396556476,1765049440480,-500.0,0.00016438,2]
[396556477,1765049440490,-500.0,0.00016438,2]
[396556478,1765049440499,-502.4043925,0.00016438,2]
[396556479,1765049440509,-500.0,0.00016438,2]
[396556480,1765049440519,-559.55,0.00016438,2]
[396556481,1765049440529,-500.0,0.00016438,2]
[396556482,1765049440539,-1233.7,0.00016438,2]
[396556483,1765049440548,-500.0,0.00016438,2]
[396556484,1765049440557,-500.0,0.00016438,2]
[396556485,1765049440567,-500.0,0.00016438,2]
[396556486,1765049440576,-500.0,0.00016438,2]
[396556487,1765049440585,-500.0,0.00016438,2]
[396556488,1765049440596,-200.72423302,0.00016438,2]
[396556489,1765049440605,-500.0,0.00016438,2]
[396556490,1765049440615,-500.0,0.00016438,2]
[396556491,1765049440624,-500.0,0.00016438,2]
[396556492,1765049440633,-500.0,0.00016438,2]
[396556493,1765049440644,-500.0,0.00016438,2]
[396556494,1765049440653,-500.0,0.00016438,2]
[396556495,1765049440662,-500.0,0.00016438,2]
[396556496,1765049440672,-501.74411331,0.00016438,2]
[396556497,1765049440682,-500.0,0.00016438,2]
[396556498,1765049440691,-500.0,0.00016438,2]
[396556499,1765049440702,-500.0,0.00016438,2]
[396556500,1765049440711,-500.0,0.00016438,2]
[396556501,1765049440721,-500.0,0.00016438,2]
[396556502,1765049440730,-500.0,0.00016438,2]
[396556503,1765049440740,-500.0,0.00016438,2]
[396556504,1765049440750,-500.46109539,0.00016438,2]
[396556505,1765049440760,-500.0,0.00016438,2]
[396556506,1765049440770,-502.03089373,0.00016438,2]
[396556507,1765049440779,-500.0,0.00016438,2]
[396556508,1765049440789,-849.1,0.00016438,2]
[396556509,1765049440799,-500.0,0.00016438,2]
[396556510,1765049440808,-509.49,0.00016438,2]